Workbook

Sheet 饲料筛介绍
B1: 饲料筛介绍
B2: 1 - 取下饲料筛的盖子，将盖子竖直插入＞3毫米隔层中间的槽中。 2 - 正确取样饲料，将饲料放入左侧隔层。
B3: 3 - 取出盖子，将盖子放回原槽内以关闭饲料筛。 4 - 将哈伯德饲料筛竖直放置（＞3毫米隔层在上部），左右上下摇动60秒。
B4: 6 - 读取结果，使用位于每个隔层左侧的刻度尺记录每个隔层中的进料量。 7 - 在本Excel文件“输入您的数据”工作表中输入结果。 8 - 取下盖子，清空筛子中的饲料。用刷子清洁筛网。 9 - 为了对饲料样本进行良好的分析，对同一种饲料重复该程序至少5次。
B12: www.hubbardbreeders.com

Sheet 输入您的数据
E1: 父母代鸡群饲料物理质量记录表
E4: 公司 | F4: Hubbard | I4: 如何使用该文件？
E5: 日期 | F5: 2023-11-28 | I5: 1 - 在绿色表格中输入数值或进行选择： 重要的是要对饲料类型和饲料形态进行正确选择，以便和哈伯德推荐进行正确比对。 2 - 解释/图例： 结果符合哈伯德推荐 结果不符合哈伯德推荐
E6: 品种 | F6: PS EFFICIENCY PLUS
E7: 农场名称 | F7: Cocorico
E8: 鸡舍号 | F8: 1
E9: 饲料场 | F9: Feed Plus
E10: 饲料类型 | F10: 产蛋I号料
E11: 饲料形态 | F11: 粗粉料
F13: 输入饲料筛上读取的数值 | L13: 占比%
F14: >3mm | G14: 2-3mm | H14: 1-2mm | I14: <1mm | J14: 合计 | L14: >3mm | M14: 2-3mm | N14: 1-2mm | O14: <1mm | P14: Total
E15: 1号子样本 | F15: 10 | G15: 45 | H15: 35 | I15: 10 | J15: =IF(OR(F15="",G15="",H15="",I15=""),"",SUM(F15:I15)) -> 100 | L15: =IF(J15="","",F15/$J15) -> 0.1 | M15: =IF(J15="","",G15/$J15) -> 0.45 | N15: =IF(J15="","",H15/$J15) -> 0.35 | O15: =IF(J15="","",I15/$J15) -> 0.1 | P15: =IF(J15="","",J15/$J15) -> 1
E16: 2号子样本 | F16: 12.5 | G16: 42.5 | H16: 32.5 | I16: 15 | J16: =IF(OR(F16="",G16="",H16="",I16=""),"",SUM(F16:I16)) -> 102.5 | L16: =IF(J16="","",F16/$J16) -> 0.1219512195 | M16: =IF(J16="","",G16/$J16) -> 0.4146341463 | N16: =IF(J16="","",H16/$J16) -> 0.3170731707 | O16: =IF(J16="","",I16/$J16) -> 0.1463414634 | P16: =IF(J16="","",J16/$J16) -> 1
E17: 3号子样本 | F17: 15 | G17: 40 | H17: 30 | I17: 15 | J17: 100 | L17: =IF(J17="","",F17/$J17) -> 0.15 | M17: 0.4 | N17: =IF(J17="","",H17/$J17) -> 0.3 | O17: 0.15 | P17: 1
E18: 4号子样本 | F18: 17.5 | G18: 37.5 | H18: 27.5 | I18: 12.5 | J18: 95 | L18: =IF(J18="","",F18/$J18) -> 0.1842105263 | M18: =IF(J18="","",G18/$J18) -> 0.3947368421 | N18: 0.2894736842 | O18: 0.1315789474 | P18: 1
E19: 5号子样本 | F19: 20 | G19: 35 | H19: 25 | I19: 15 | J19: =IF(OR(F19="",G19="",H19="",I19=""),"",SUM(F19:I19)) -> 95 | L19: =IF(J19="","",F19/$J19) -> 0.2105263158 | M19: =IF(J19="","",G19/$J19) -> 0.3684210526 | N19: 0.2631578947 | O19: 0.1578947368 | P19: 1
E20: 平均值 | F20: =IF($F$15>0.001,AVERAGE(F15:F19),"") -> 15 | G20: =IF($F$15>0.001,AVERAGE(G15:G19),"") -> 40 | H20: =IF($F$15>0.001,AVERAGE(H15:H19),"") -> 30 | I20: =IF($F$15>0.001,AVERAGE(I15:I19),"") -> 13.5 | J20: =IF($F$15>0.001,AVERAGE(J15:J19),"") -> 98.5 | L20: =IF($F$15>0.001,AVERAGE(L15:L19),"") -> 0.1533376123 | M20: =IF($F$15>0.001,AVERAGE(M15:M19),"") -> 0.4055584082 | N20: =IF($F$15>0.001,AVERAGE(N15:N19),"") -> 0.3039409499 | O20: =IF($F$15>0.001,AVERAGE(O15:O19),"") -> 0.1371630295 | P20: =IF($F$15>0.001,AVERAGE(P15:P19),"") -> 1
E21: 哈伯德推荐 | F21: =IF(L21="","",L21*100) -> 15 | G21: =IF(M21="","",M21*100) -> 40 | H21: =IF(N21="","",N21*100) -> 30 | I21: =IF(O21="","",O21*100) -> 15 | J21: =IF(P21="","",P21*100) -> 100 | L21: =IF(VLOOKUP($F$11&$F$10&$L$14,Recommandations!A2:E97,5,0)="N/A","",VLOOKUP($F$11&$F$10&$L$14,Recommandations!A2:E97,5,0)) -> 0.15 | M21: =IF(VLOOKUP($F$11&$F$10&$M$14,Recommandations!$A$2:$E$97,5,0)="N/A","",VLOOKUP($F$11&$F$10&$M$14,Recommandations!$A$2:$E$97,5,0)) -> 0.4 | N21: =IF(VLOOKUP($F$11&$F$10&$N$14,Recommandations!$A$2:$E$97,5,0)="N/A","",VLOOKUP($F$11&$F$10&$N$14,Recommandations!$A$2:$E$97,5,0)) -> 0.3 | O21: =IF(VLOOKUP($F$11&$F$10&$O$14,Recommandations!$A$2:$E$97,5,0)="N/A","",VLOOKUP($F$11&$F$10&$O$14,Recommandations!$A$2:$E$97,5,0)) -> 0.15 | P21: =IF(SUM(L21:O21)=0,"",SUM(L21:O21)) -> 1
E43: 请咨询您当地的哈伯德技术经理以了解更多详细信息。
E44: www.hubbardbreeders.com
E46: 本资料中的性能数据均基于哈伯德公司内部试验鸡群及客户鸡群的记录结果编制。这些数据绝不表明我们能担保或保证其在不同营养、密度、物理或生物安全环境条件下饲养时亦能获得同样的结果。尤其是（不仅仅限于上述千差万别的条件）我们从不对产品的适用性、性能、用途、自然特性或品质作任何担保，也没有任何关于遵守当地有关健康、福利或动物生产其他方面的法规的保证。哈伯德公司对本资料所列示信息的完整性和准确性不承担责任。

Sheet Recommandations (hidden)
A1: ID | B1: Form | C1: Particle size | D1: Feed type | E1: Recommandation | F1: Quality of feed presentation
A2: =B2&D2&C2 -> 破碎料产前料<1mm | B2: 破碎料 | C2: <1mm | D2: 产前料 | E2: 0.1 | F2: Good | H2: 破碎料 | I2: 育雏早前料 | J2: PS Female EFFICIENCY PLUS
A3: 破碎料产前料>3mm | B3: 破碎料 | C3: >3mm | D3: 产前料 | E3: 0.5 | F3: Good | H3: 粗粉料 | I3: 育雏料 | J3: PS Premium Female (JA57; JA57Ki; JA87; REDBRO; Redbro Mini; P6N)
A4: 破碎料产前料1-2mm | B4: 破碎料 | C4: 1-2mm | D4: 产前料 | E4: 0.1 | F4: Good | H4: 颗粒料 | I4: 育成料 | J4: PS Males (M77/M99)
A5: 破碎料产前料2-3mm | B5: 破碎料 | C5: 2-3mm | D5: 产前料 | E5: 0.3 | F5: Good | I5: 产前料 | J5: PS Males (Intermediate growth males, slow growth males)
A6: 破碎料产蛋III号料<1mm | B6: 破碎料 | C6: <1mm | D6: 产蛋III号料 | E6: 0.1 | F6: Good | I6: 开产料
A7: 破碎料产蛋III号料>3mm | B7: 破碎料 | C7: >3mm | D7: 产蛋III号料 | E7: 0.5 | F7: Good | I7: 产蛋I号料
A8: 破碎料产蛋III号料1-2mm | B8: 破碎料 | C8: 1-2mm | D8: 产蛋III号料 | E8: 0.1 | F8: Good | I8: 产蛋II号料
A9: 破碎料产蛋III号料2-3mm | B9: 破碎料 | C9: 2-3mm | D9: 产蛋III号料 | E9: 0.3 | F9: Good | I9: 产蛋III号料
A10: 破碎料产蛋II号料<1mm | B10: 破碎料 | C10: <1mm | D10: 产蛋II号料 | E10: 0.1 | F10: Good
A11: 破碎料产蛋II号料>3mm | B11: 破碎料 | C11: >3mm | D11: 产蛋II号料 | E11: 0.5 | F11: Good
A12: 破碎料产蛋II号料1-2mm | B12: 破碎料 | C12: 1-2mm | D12: 产蛋II号料 | E12: 0.1 | F12: Good
A13: 破碎料产蛋II号料2-3mm | B13: 破碎料 | C13: 2-3mm | D13: 产蛋II号料 | E13: 0.3 | F13: Good
A14: 破碎料产蛋I号料<1mm | B14: 破碎料 | C14: <1mm | D14: 产蛋I号料 | E14: 0.1 | F14: Good
A15: 破碎料产蛋I号料>3mm | B15: 破碎料 | C15: >3mm | D15: 产蛋I号料 | E15: 0.5 | F15: Good
A16: 破碎料产蛋I号料1-2mm | B16: 破碎料 | C16: 1-2mm | D16: 产蛋I号料 | E16: 0.1 | F16: Good
A17: 破碎料产蛋I号料2-3mm | B17: 破碎料 | C17: 2-3mm | D17: 产蛋I号料 | E17: 0.3 | F17: Good
A18: 破碎料开产料<1mm | B18: 破碎料 | C18: <1mm | D18: 开产料 | E18: 0.1 | F18: Good
A19: 破碎料开产料>3mm | B19: 破碎料 | C19: >3mm | D19: 开产料 | E19: 0.5 | F19: Good
A20: 破碎料开产料1-2mm | B20: 破碎料 | C20: 1-2mm | D20: 开产料 | E20: 0.1 | F20: Good
A21: 破碎料开产料2-3mm | B21: 破碎料 | C21: 2-3mm | D21: 开产料 | E21: 0.3 | F21: Good
A22: 破碎料育成料<1mm | B22: 破碎料 | C22: <1mm | D22: 育成料 | E22: 0.1 | F22: Good
A23: 破碎料育成料>3mm | B23: 破碎料 | C23: >3mm | D23: 育成料 | E23: 0.5 | F23: Good
A24: 破碎料育成料1-2mm | B24: 破碎料 | C24: 1-2mm | D24: 育成料 | E24: 0.1 | F24: Good
A25: 破碎料育成料2-3mm | B25: 破碎料 | C25: 2-3mm | D25: 育成料 | E25: 0.3 | F25: Good
A26: 破碎料育雏料<1mm | B26: 破碎料 | C26: <1mm | D26: 育雏料 | E26: 0.05 | F26: Good
A27: 破碎料育雏料>3mm | B27: 破碎料 | C27: >3mm | D27: 育雏料 | E27: 0 | F27: Good
A28: 破碎料育雏料1-2mm | B28: 破碎料 | C28: 1-2mm | D28: 育雏料 | E28: 0.55 | F28: Good
A29: 破碎料育雏料2-3mm | B29: 破碎料 | C29: 2-3mm | D29: 育雏料 | E29: 0.4 | F29: Good
A30: 破碎料育雏早前料<1mm | B30: 破碎料 | C30: <1mm | D30: 育雏早前料 | E30: 0.05 | F30: Good
A31: 破碎料育雏早前料>3mm | B31: 破碎料 | C31: >3mm | D31: 育雏早前料 | E31: 0 | F31: Good
A32: 破碎料育雏早前料1-2mm | B32: 破碎料 | C32: 1-2mm | D32: 育雏早前料 | E32: 0.55 | F32: Good
A33: 破碎料育雏早前料2-3mm | B33: 破碎料 | C33: 2-3mm | D33: 育雏早前料 | E33: 0.4 | F33: Good
A34: =B34&D34&C34 -> 粗粉料产前料<1mm | B34: 粗粉料 | C34: <1mm | D34: 产前料 | E34: 0.2 | F34: Good
A35: 粗粉料产前料>3mm | B35: 粗粉料 | C35: >3mm | D35: 产前料 | E35: 0.1 | F35: Good
A36: 粗粉料产前料1-2mm | B36: 粗粉料 | C36: 1-2mm | D36: 产前料 | E36: 0.35 | F36: Good
A37: 粗粉料产前料2-3mm | B37: 粗粉料 | C37: 2-3mm | D37: 产前料 | E37: 0.35 | F37: Good
A38: 粗粉料产蛋III号料<1mm | B38: 粗粉料 | C38: <1mm | D38: 产蛋III号料 | E38: 0.15 | F38: Good
A39: 粗粉料产蛋III号料>3mm | B39: 粗粉料 | C39: >3mm | D39: 产蛋III号料 | E39: 0.15 | F39: Good
A40: 粗粉料产蛋III号料1-2mm | B40: 粗粉料 | C40: 1-2mm | D40: 产蛋III号料 | E40: 0.3 | F40: Good
A41: 粗粉料产蛋III号料2-3mm | B41: 粗粉料 | C41: 2-3mm | D41: 产蛋III号料 | E41: 0.4 | F41: Good
A42: 粗粉料产蛋II号料<1mm | B42: 粗粉料 | C42: <1mm | D42: 产蛋II号料 | E42: 0.15 | F42: Good
A43: 粗粉料产蛋II号料>3mm | B43: 粗粉料 | C43: >3mm | D43: 产蛋II号料 | E43: 0.15 | F43: Good
A44: 粗粉料产蛋II号料1-2mm | B44: 粗粉料 | C44: 1-2mm | D44: 产蛋II号料 | E44: 0.3 | F44: Good
A45: 粗粉料产蛋II号料2-3mm | B45: 粗粉料 | C45: 2-3mm | D45: 产蛋II号料 | E45: 0.4 | F45: Good
A46: 粗粉料产蛋I号料<1mm | B46: 粗粉料 | C46: <1mm | D46: 产蛋I号料 | E46: 0.15 | F46: Good
A47: 粗粉料产蛋I号料>3mm | B47: 粗粉料 | C47: >3mm | D47: 产蛋I号料 | E47: 0.15 | F47: Good
A48: 粗粉料产蛋I号料1-2mm | B48: 粗粉料 | C48: 1-2mm | D48: 产蛋I号料 | E48: 0.3 | F48: Good
A49: 粗粉料产蛋I号料2-3mm | B49: 粗粉料 | C49: 2-3mm | D49: 产蛋I号料 | E49: 0.4 | F49: Good
A50: 粗粉料开产料<1mm | B50: 粗粉料 | C50: <1mm | D50: 开产料 | E50: 0.15 | F50: Good
A51: 粗粉料开产料>3mm | B51: 粗粉料 | C51: >3mm | D51: 开产料 | E51: 0.15 | F51: Good
A52: 粗粉料开产料1-2mm | B52: 粗粉料 | C52: 1-2mm | D52: 开产料 | E52: 0.3 | F52: Good
A53: 粗粉料开产料2-3mm | B53: 粗粉料 | C53: 2-3mm | D53: 开产料 | E53: 0.4 | F53: Good
A54: 粗粉料育成料<1mm | B54: 粗粉料 | C54: <1mm | D54: 育成料 | E54: 0.2 | F54: Good
A55: 粗粉料育成料>3mm | B55: 粗粉料 | C55: >3mm | D55: 育成料 | E55: 0.1 | F55: Good
A56: 粗粉料育成料1-2mm | B56: 粗粉料 | C56: 1-2mm | D56: 育成料 | E56: 0.35 | F56: Good
A57: 粗粉料育成料2-3mm | B57: 粗粉料 | C57: 2-3mm | D57: 育成料 | E57: 0.35 | F57: Good
A58: 粗粉料育雏料<1mm | B58: 粗粉料 | C58: <1mm | D58: 育雏料 | E58: 0.2 | F58: Good
A59: 粗粉料育雏料>3mm | B59: 粗粉料 | C59: >3mm | D59: 育雏料 | E59: 0.05 | F59: Good
A60: 粗粉料育雏料1-2mm | B60: 粗粉料 | C60: 1-2mm | D60: 育雏料 | E60: 0.5 | F60: Good
A61: 粗粉料育雏料2-3mm | B61: 粗粉料 | C61: 2-3mm | D61: 育雏料 | E61: 0.25 | F61: Good
A62: 粗粉料育雏早前料<1mm | B62: 粗粉料 | C62: <1mm | D62: 育雏早前料 | E62: 0.2 | F62: Good
A63: 粗粉料育雏早前料>3mm | B63: 粗粉料 | C63: >3mm | D63: 育雏早前料 | E63: 0.05 | F63: Good
A64: 粗粉料育雏早前料1-2mm | B64: 粗粉料 | C64: 1-2mm | D64: 育雏早前料 | E64: 0.5 | F64: Good
A65: 粗粉料育雏早前料2-3mm | B65: 粗粉料 | C65: 2-3mm | D65: 育雏早前料 | E65: 0.25 | F65: Good
A66: =B66&D66&C66 -> 颗粒料产前料<1mm | B66: 颗粒料 | C66: <1mm | D66: 产前料 | E66: 0.1 | F66: Good
A67: 颗粒料产前料>3mm | B67: 颗粒料 | C67: >3mm | D67: 产前料 | E67: 0.7 | F67: Good
A68: 颗粒料产前料1-2mm | B68: 颗粒料 | C68: 1-2mm | D68: 产前料 | E68: 0.1 | F68: Good
A69: 颗粒料产前料2-3mm | B69: 颗粒料 | C69: 2-3mm | D69: 产前料 | E69: 0.1 | F69: Good
A70: 颗粒料产蛋III号料<1mm | B70: 颗粒料 | C70: <1mm | D70: 产蛋III号料 | E70: 0.1 | F70: Good
A71: 颗粒料产蛋III号料>3mm | B71: 颗粒料 | C71: >3mm | D71: 产蛋III号料 | E71: 0.7 | F71: Good
A72: 颗粒料产蛋III号料1-2mm | B72: 颗粒料 | C72: 1-2mm | D72: 产蛋III号料 | E72: 0.1 | F72: Good
A73: 颗粒料产蛋III号料2-3mm | B73: 颗粒料 | C73: 2-3mm | D73: 产蛋III号料 | E73: 0.1 | F73: Good
A74: 颗粒料产蛋II号料<1mm | B74: 颗粒料 | C74: <1mm | D74: 产蛋II号料 | E74: 0.1 | F74: Good
A75: 颗粒料产蛋II号料>3mm | B75: 颗粒料 | C75: >3mm | D75: 产蛋II号料 | E75: 0.7 | F75: Good
A76: 颗粒料产蛋II号料1-2mm | B76: 颗粒料 | C76: 1-2mm | D76: 产蛋II号料 | E76: 0.1 | F76: Good
A77: 颗粒料产蛋II号料2-3mm | B77: 颗粒料 | C77: 2-3mm | D77: 产蛋II号料 | E77: 0.1 | F77: Good
A78: 颗粒料产蛋I号料<1mm | B78: 颗粒料 | C78: <1mm | D78: 产蛋I号料 | E78: 0.1 | F78: Good
A79: 颗粒料产蛋I号料>3mm | B79: 颗粒料 | C79: >3mm | D79: 产蛋I号料 | E79: 0.7 | F79: Good
A80: 颗粒料产蛋I号料1-2mm | B80: 颗粒料 | C80: 1-2mm | D80: 产蛋I号料 | E80: 0.1 | F80: Good
A81: 颗粒料产蛋I号料2-3mm | B81: 颗粒料 | C81: 2-3mm | D81: 产蛋I号料 | E81: 0.1 | F81: Good
A82: 颗粒料开产料<1mm | B82: 颗粒料 | C82: <1mm | D82: 开产料 | E82: 0.1 | F82: Good
A83: 颗粒料开产料>3mm | B83: 颗粒料 | C83: >3mm | D83: 开产料 | E83: 0.7 | F83: Good
A84: 颗粒料开产料1-2mm | B84: 颗粒料 | C84: 1-2mm | D84: 开产料 | E84: 0.1 | F84: Good
A85: 颗粒料开产料2-3mm | B85: 颗粒料 | C85: 2-3mm | D85: 开产料 | E85: 0.1 | F85: Good
A86: 颗粒料育成料<1mm | B86: 颗粒料 | C86: <1mm | D86: 育成料 | E86: 0.1 | F86: Good
A87: 颗粒料育成料>3mm | B87: 颗粒料 | C87: >3mm | D87: 育成料 | E87: 0.7 | F87: Good
A88: 颗粒料育成料1-2mm | B88: 颗粒料 | C88: 1-2mm | D88: 育成料 | E88: 0.1 | F88: Good
A89: 颗粒料育成料2-3mm | B89: 颗粒料 | C89: 2-3mm | D89: 育成料 | E89: 0.1 | F89: Good
A90: 颗粒料育雏料<1mm | B90: 颗粒料 | C90: <1mm | D90: 育雏料 | E90: N/A | F90: Good
A91: 颗粒料育雏料>3mm | B91: 颗粒料 | C91: >3mm | D91: 育雏料 | E91: N/A | F91: Good
A92: 颗粒料育雏料1-2mm | B92: 颗粒料 | C92: 1-2mm | D92: 育雏料 | E92: N/A | F92: Good
A93: 颗粒料育雏料2-3mm | B93: 颗粒料 | C93: 2-3mm | D93: 育雏料 | E93: N/A | F93: Good
A94: 颗粒料育雏早前料<1mm | B94: 颗粒料 | C94: <1mm | D94: 育雏早前料 | E94: N/A | F94: Good
A95: 颗粒料育雏早前料>3mm | B95: 颗粒料 | C95: >3mm | D95: 育雏早前料 | E95: N/A | F95: Good
A96: 颗粒料育雏早前料1-2mm | B96: 颗粒料 | C96: 1-2mm | D96: 育雏早前料 | E96: N/A | F96: Good
A97: 颗粒料育雏早前料2-3mm | B97: 颗粒料 | C97: 2-3mm | D97: 育雏早前料 | E97: N/A | F97: Good
